Cogmind - Beta 9.6 @@@ ROGUE MODE // 2020.05.22 @ 15:13:34 Player: CreepyD Result: Destroyed by G-34 Mercenary with Small Laser Performance ------------- Evolutions (1) 500 Regions Visited (3) 600 Robots Destroyed (5) 25 Value Destroyed (122) 122 Prototype IDs (0) 0 Alien Tech Used (0) 0 Bonus (0) 0 TOTAL SCORE: 1247 Bonus ------- None Cogmind --------- Core Integrity 0/400 Matter 281/300 Energy 99/100 System Corruption 0% Temperature Cool (6) Movement Core (50) Location -9/Materials Parts ------- > --- POWER (1) -------- (None) > --- PROPULSION (2) --- (None) > --- UTILITY (4) ------ (None) > --- WEAPON (2) ------- (None) > --- INVENTORY (4) ---- Small Storage Unit Peak State ------------ > --- POWER ------------ Ion Engine > --- PROPULSION ------- Wheel Compact Wheel > --- UTILITY ---------- Heat Sink Small Storage Unit Utility Shielding Integration Mediator > --- WEAPON ----------- Beam Rifle Beam Cannon > --- INVENTORY -------- (None) [Rating: 11] Favorites ----------- Power Ion Engine Engine Ion Engine Propulsion Compact Wheel Wheel Compact Wheel Utility Small Storage Unit Device Heat Sink Storage Small Storage Unit Protection Utility Shielding Weapon Beam Cannon Energy Gun Medium Laser Energy Cannon Beam Cannon Ballistic Gun Assault Rifle Build | -11 -10 -10 -9 ------- Run | Scr Mat Min Mat Slots Evolved 2 | . . . 2 Power . | . . . . Propulsion . | . . . . Utility 2 | . . . 2 Weapon . | . . . . Parts Attached 13 | 6 2 . 5 Power 1 | 1 . . . Engine 1 | 1 . . . Core . | . . . . Reactor . | . . . . Propulsion 2 | 2 . . . Treads . | . . . . Leg . | . . . . Wheel 2 | 2 . . . Hover . | . . . . Flight . | . . . . Utility 4 | 1 1 . 2 Device 2 | . 1 . 1 Storage 1 | 1 . . . Processor . | . . . . Hackware . | . . . . Protection 1 | . . . 1 Artifact . | . . . . Weapon 6 | 2 1 . 3 Energy Gun 2 | 1 . . 1 Energy Cannon 1 | . 1 . . Ballistic Gun 3 | 1 . . 2 Ballistic Cannon . | . . . . Launcher . | . . . . Special Weapon . | . . . . Impact Weapon . | . . . . Slashing Weapon . | . . . . Piercing Weapon . | . . . . Special Melee Weapon . | . . . . Unidentified Prototypes . | . . . . Parts Lost 8 | . . . 8 Power 1 | . . . 1 Propulsion 2 | . . . 2 Utility 2 | . . . 2 Weapon 3 | . . . 3 Highest Loss Streak 6 | . . . 6 Average Slot Usage (%) 69 | . 90 100 59 Engine 8 | . 14 14 5 Wheel 17 | . 28 28 11 Device 10 | . 5 14 12 Storage 10 | . 14 14 8 Protection 3 | . . . 5 Energy Gun 4 | . 7 . 2 Energy Cannon 6 | . 6 14 5 Ballistic Gun 8 | . 14 14 6 Naked Turns 32 | . . . 32 Heaviest Build 19 | 13 15 15 19 Greatest Support 26 | 26 26 26 26 Greatest Overweight (x) 2 | . . . 2 Average Overweight (x) . | . . . . Largest Inventory Capacity 6 | 6 6 6 6 Average Capacity 5 | 5 6 6 5 Most Carried 4 | 4 1 . 2 Average Carried . | 1 . . . Final Capacity 6 | 6 6 6 4 Final Carried 1 | . . . 1 Class Distribution -------------------- 100% | Mutant Dominant Class ---------------- Mutant | -10/Materials Mutant | -10/Mines Mutant | -9/Materials Resources | -11 -10 -10 -9 ----------- Run | Scr Mat Min Mat Matter Collected 314 | 253 13 . 48 Remotely . | . . . . Salvage Created 137 | . 36 . 101 Parts 10 | . 6 . 4 Haulers Intercepted . | . . . . Recyclers Shooed . | . . . . Parts Field Recycled . | . . . . Retrieved Matter . | . . . . Parts Self-Destructed . | . . . . Prevented . | . . . . Kills | -11 -10 -10 -9 ------- Run | Scr Mat Min Mat Combat Hostiles Destroyed 5 | . 3 . 2 Guns 4 | . 3 . 1 Cannons 1 | . . . 1 Classes Destroyed 3 | . 1 . 2 Swarmer 3 | . 3 . . Duelist 1 | . . . 1 Sentry 1 | . . . 1 Best Kill Streak 3 | . 3 . 1 Combat Bots Only 3 | . 3 . 1 Max Kills in Single Turn 2 | . 2 . 1 Gunslinging 1 | . 1 . . Exploded . | . . . . Melee . | . . . . Uniques/NPCs Destroyed . | . . . . Combat | -11 -10 -10 -9 -------- Run | Scr Mat Min Mat Damage Taken 968 | . 54 15 899 Core 431 | . 10 14 407 Absorbed by Shields . | . . . . Core Remaining (%) 95 | 100 . 90 . Volleys Fired 22 | . 2 . 20 Largest 2 | . 2 . 2 Hottest 116 | . 70 . 116 Shots Fired 32 | . 4 . 28 Gun 22 | . 4 . 18 Cannon 10 | . . . 10 Launcher . | . . . . Special . | . . . . Kinetic 12 | . 2 . 10 Thermal 20 | . 2 . 18 Explosive . | . . . . Electromagnetic . | . . . . Robot Hit Streak 5 | . 2 . 5 Robot Miss Streak 2 | . 1 . 2 Penetration Max . | . . . . Secondary Targets 2 | . 2 . . Max Gunslinging Chain 1 | . 1 . . Shots Hit Robots 20 | . 3 . 17 Core Hits 11 | . 3 . 8 Critical Hits . | . . . . Critical Kills . | . . . . Critical Parts Destroyed . | . . . . Melee Attacks . | . . . . Impact . | . . . . Slashing . | . . . . Piercing . | . . . . Sneak Attacks . | . . . . Combat Hostiles . | . . . . Follow-up Attacks . | . . . . Damage Inflicted 346 | . 39 2 305 Guns 194 | . 39 . 155 Cannons 141 | . . . 141 Explosions . | . . . . Melee . | . . . . Ramming 11 | . . 2 9 Kinetic 97 | . 14 . 83 Thermal 238 | . 25 . 213 Explosive . | . . . . Electromagnetic . | . . . . Impact . | . . . . Slashing . | . . . . Piercing . | . . . . Highest Corruption . | . . . . Average Corruption . | . . . . Corruption Purged . | . . . . Overload Shots . | . . . . Overflow Damage . | . . . . Projectiles . | . . . . Explosions . | . . . . Melee . | . . . . Knockbacks . | . . . . Impact . | . . . . Kinetic . | . . . . Secondary . | . . . . Self-Inflicted Damage 5 | . . 1 4 Shots . | . . . . Rammed 4 | . . 2 2 Targets Rammed 4 | . . 2 2 Kicked . | . . . . Crushed . | . . . . Highest Temperature 81 | . 18 . 81 Average Temperature 34 | . 10 . 39 Received Heat Transfer 468 | . 21 9 438 Siege Activations . | . . . . Robots Corrupted . | . . . . Combat Hostiles . | . . . . Parts Fried . | . . . . Impact Corruptions . | . . . . Robots Melted . | . . . . Combat Hostiles . | . . . . Parts Melted 1 | . 1 . . Heat Transferred 555 | . 74 . 481 Parts Sabotaged . | . . . . Parts Stolen . | . . . . Parts Stripped . | . . . . Power Chain Reactions . | . . . . Missiles Intercepted . | . . . . Alert | -11 -10 -10 -9 ------- Run | Scr Mat Min Mat Peak Influence 70 | . 70 27 70 Average Influence 38 | . 51 27 38 Maximum Alert Level . | . . . . Low Security (%) 100 | 100 100 100 100 Level 1 . | . . . . Level 2 . | . . . . Level 3 . | . . . . Level 4 . | . . . . Level 5 . | . . . . High Security . | . . . . Max Security . | . . . . Squads Dispatched 4 | . . . 4 Investigation 1 | . . . 1 Extermination . | . . . . Reinforcement 3 | . . . 3 Assault . | . . . . Garrison . | . . . . Intercept . | . . . . Construction Impeded . | . . . . Haulers Reinforced . | . . . . Stealth | -11 -10 -10 -9 --------- Run | Scr Mat Min Mat Distress Signals 1 | . . . 1 Communications Jammed . | . . . . Distress Signals . | . . . . Times Spotted 28 | . 5 2 21 Peak Tracking Total 14 | . 3 2 14 Tactical Retreats 2 | . . . 2 Traps | -11 -10 -10 -9 ------- Run | Scr Mat Min Mat Traps Triggered 1 | . . . 1 Indirectly . | . . . . Trap Hack Attempts . | . . . . Triggered . | . . . . Disarmed . | . . . . Reprogrammed . | . . . . Reused . | . . . . Traps Extracted . | . . . . Installed . | . . . . Triggered . | . . . . Machines | -11 -10 -10 -9 ---------- Run | Scr Mat Min Mat Machines Disabled . | . . . . Max in Single Turn . | . . . . Machines Sabotaged . | . . . . Garrisons Compromised . | . . . . Overloaded Fab Kills . | . . . . Fab Network Shutdowns . | . . . . Hacking | -11 -10 -10 -9 --------- Run | Scr Mat Min Mat Machines Accessed 3 | . . . 3 Terminals 3 | . . . 3 Fabricators . | . . . . Repair Stations . | . . . . Recycling Units . | . . . . Scanalyzers . | . . . . Garrison Access . | . . . . Total Hacks 7 | . . . 7 Successful 1 | . . . 1 Failed 6 | . . . 6 Catastrophic 1 | . . . 1 Database Lockouts . | . . . . Manual 3 | . . . 3 Terminals 7 | . . . 7 Fabricators . | . . . . Repair Stations . | . . . . Recycling Units . | . . . . Scanalyzers . | . . . . Garrison Access . | . . . . Terminal Hacks 1 | . . . 1 Zone Layout 1 | . . . 1 Fabricator Hacks . | . . . . Repair Station Hacks . | . . . . Recycling Unit Hacks . | . . . . Scanalyzer . | . . . . Garrison Access Hacks . | . . . . Unauthorized Hacks . | . . . . Terminals . | . . . . Fabricators . | . . . . Repair Stations . | . . . . Recycling Units . | . . . . Scanalyzers . | . . . . Garrison Access . | . . . . Data Cores Recovered . | . . . . Used . | . . . . Hacking Detections 3 | . . . 3 Full Trace Events . | . . . . Feedback Events . | . . . . Feedback Blocked . | . . . . Robot Schematics Acquired . | . . . . Robots Built . | . . . . Matter . | . . . . Time . | . . . . Total Robot Build Rating . | . . . . Part Schematics Acquired . | . . . . Parts Built . | . . . . Matter . | . . . . Time . | . . . . Total Part Build Rating . | . . . . Parts Repaired . | . . . . Time . | . . . . Parts Recycled . | . . . . Recycled Matter . | . . . . Retrieved Matter . | . . . . Retrieved Components . | . . . . Parts Scanalyzed . | . . . . Part Schematics Acquired . | . . . . Parts Damaged . | . . . . Bothacking | -11 -10 -10 -9 ------------ Run | Scr Mat Min Mat Used RIF Installer . | . . . . Robots Hacked . | . . . . Non-combat . | . . . . Combat . | . . . . Robot Hacks Applied . | . . . . Relay Couplers Released . | . . . . Robots Rewired . | . . . . Allies Hacked . | . . . . Hacks Repelled . | . . . . Allies | -11 -10 -10 -9 -------- Run | Scr Mat Min Mat Total Allies . | . . . . Largest Group . | . . . . Highest-Rated Group . | . . . . Highest-Rated Ally . | . . . . Total Orders . | . . . . Ally Attacks . | . . . . Total Damage . | . . . . Kills . | . . . . Allies Corrupted . | . . . . Allies Melted . | . . . . Intel | -11 -10 -10 -9 ------- Run | Scr Mat Min Mat Robot Analysis Total . | . . . . Derelict Logs Recovered . | . . . . Drone Launches . | . . . . Drone Recoveries . | . . . . Exploration | -11 -10 -10 -9 ------------- Run | Scr Mat Min Mat Turns Passed 500 | 48 128 16 308 Spaces Moved 436 | 42 96 6 292 Core 143 | 9 . . 134 Treads . | . . . . Legs . | . . . . Wheels 293 | 33 96 6 158 Hover . | . . . . Flight . | . . . . Fastest Speed 50 | 50 90 90 50 Average Speed 83 | 81 90 90 82 Slowest Speed 150 | 90 90 90 150 Overloaded Moves . | . . . . Propulsion Burnouts . | . . . . Robots Hopped . | . . . . Cave-ins Triggered . | . . . . Exploration Rate (%) 18 | 3 28 10 33 Regions Visited 3 Branch Regions 1 Pre-discovered Areas . | . . . . Known Exits Taken . | . . . . Unknown Exits Taken 3 | 1 1 1 . Scrap Searched . | . . . . Spaces Dug . | . . . . Terrain Destroyed . | . . . . Melee . | . . . . Projectile . | . . . . AOE . | . . . . Actions | -11 -10 -10 -9 --------- Run | Scr Mat Min Mat Total 538 | 55 133 16 334 Wait 47 | 1 31 9 6 Move 434 | 41 95 6 292 Hop . | . . . . Pick Up 13 | 6 2 . 5 Fast Attach 1 | 1 . . . Attach 12 | 5 2 . 5 Detach 1 | . . . 1 Swap . | . . . . Drop 5 | 1 1 . 3 Fire 22 | . 2 . 20 Melee . | . . . . Ram 3 | . . 1 2 Kick . | . . . . Crush . | . . . . Escape Stasis . | . . . . Rewire . | . . . . Trap . | . . . . Miscellaneous . | . . . . Route ------- -11/Scrapyard -10/Materials -10/Mines -9/Materials History --------- Turn | Location | Event 12 | -11/Scrapyard | Discovered new exit (range 15) 49 | -11/Scrapyard | Entered Materials 173 | -10/Materials | Discovered new exit (range 5) 177 | -10/Materials | Entered Mines 177 | -10/Mines | Discovered new exit (range 7) 179 | -10/Mines | Met a Derelict bent on vengeance 193 | -10/Mines | Entered Materials 193 | -9/Materials | Evolved 2 slots: Utility x2 302 | -9/Materials | Build established: Mutant 399 | -9/Materials | Core integrity fell below 50% 408 | -9/Materials | Lost 6 parts (1p2n1u2w) 492 | -9/Materials | Core integrity fell below 20% 501 | -9/Materials | Destroyed by G-34 Mercenary with Small Laser Last Messages --------------- 00353_ Beam Cannon destroyed. 00356_ Slammed into G-34 Mercenary. 00365_ Acquired Hvy. Assault Rifle. 00375_ Integration Mediator destroyed. 00377_ Com. Wheel destroyed. 00394_ K-01 Serf cleans the Matter Pump. 00416_ Heat Sink destroyed. 00420_ Dropped Hvy. Assault Rifle. 00420_ Dropped Utility Shielding. 00421_ Acquired Hvy. Assault Rifle. 00426_ R-06 Scavenger collects Utility Shielding. 00430_ U-05 Engineer lays Concrete. 00433_ Connecting with Terminal... 00446_ O-16 Technician: "IFF HANDSHAKE FAILED. SECURING TERMINAL." 00448_ O-16 Technician sends out distress signal. 00450_ ALERT: Hostiles spotted, dispatching reinforcements to Terminal M006. 00461_ Acquired 13 matter. 00495_ Hvy. Assault Rifle destroyed. 00496_ Slammed into G-34 Mercenary. Map ----- +----------------------------------------------------+ | | | | | | | | | | | | | | | | | | | | | | | | | | | | | | | | | | | | | | | | | ???????????#?????????????????????????????????????? | | ???????"""" ?????????????????????????????????????? | | ????? ""T"" ?????????????????????????????????????? | | ??????? ????????????????############?????????? | | ???????? ?????############ # #?????????? | | ????????? ?? + @ #% #?????????? | | ?????????##/##???# g # #?????????? | | ?????????# ##### g gg #?????????? | | ????###### ### """ #?????????? | | ?? #?# """ #?????????? | | ??????#### #############?# """ #?????????? | | ?????????# #?????????????#######?????????? | | ?????????# ##????????????????????????????? | | ?????????+ +????????????????????????????? | | ?????????# ########????????????????????????????? | | ?????????# #?######????????????????????????????? | | ?????????# ## #????????????????????????????? | | ?????????# #????????????????????????????? | | ?????????# +????????????????????????????? | | ?????????# #????????????????????????????? | | ?????????## ### ! #????????????????????????????? | | ???########+#### ##????????????????????????????? | | ???# # #?????????????????????????????? | | ???# + +?????????????????????????????? | | ???# # #?????????????????????????????? | | ???# # #?????????????????????????????? | | ???+ # #?????????????????????????????? | | ???# # #?????????????????????????????? | | ???# # #?????????????????????????????? | | ???####+######## #?????#####???????????????????? | +----------------------------------------------------+ Best States ------------- Heat Dissipation 38 Energy Generation 10 Energy Capacity 250 Matter Stores 300 Matter Capacity 300 Sight Range 16 Terrain Scan Density 10 Utility Shielding 33 Evasion (%) 50 Item Schematics ----------------- None Robot Schematics ------------------ None Fabricated ------------ Nothing Alien Tech Used ----------------- None Achievements -------------- None Challenges ------------ None Game ------ Seed BiometalScatterExpander Manual? 0 Play Time 00:09:49 Cumulative 45.1 hours Start 2020.05.22 @ 15:05:08 End 2020.05.22 @ 15:13:34 Sessions 1 Manual Loads 0 Difficulty Rogue Special Mode None Game No. 48 Rogue 47 Adventurer 1 Explorer 0 Win Type - Total 0 Types 0/0/0/0/0/0/0 Lore% 23 Gallery% 45 Achievement% 29 Wizard Run 0 Options --------- ASCII 0 Keyboard 0 Movement Numpad Keybinds 0 Fullscreen 0 Font 18/Smallcaps Map View 76x50 Tactical HUD 1 Map Filters NONE Filters NONE Steam X RUN: b092487a-fbd0-4cb6-8979-72540eea88ad